Workbook

Sheet паспорт
A1: ПАТ "УКРТРАНСГАЗ" | G1: ПАСПОРТ ФІЗИКО-ХІМІЧНИХ ПОКАЗНИКІВ ПРИРОДНОГО ГАЗУ № 806
A2: Філія "УМГ "Черкаситрансгаз" | G2: переданого Барським ЛВУМГ та прийнятого ПАТ "Вінницягаз" та ДП "Монтажник" ТОВ "Валінор"
A3: Барський п/м Барське ЛВУМГ | G3: Маршрут №806
A4: Вимірювальна хіміко-аналітична лабораторія
A5: Свідоцтво № ПУ-0124/15 чинно до 20.10.2018 р. | K5: по газопроводу "СОЮЗ" | O5: УРЕНГОЙ-ПОМАРИ-УЖГОРОД | V5: за період з | X5: 2017-04-01 | Z5: по | AA5: 2017-04-30
A7: Число місяця | B7: Компонентний склад, % мол. | N7: Фізико-хімічні показники газу обчислені на основі компонентного складу, 101,325 кПа | X7: Температура точки роси за вологою (Р = 3.92 МПа), ºС | Y7: Температура точки роси за вуглеводнями, ºС | Z7: Вміст сірководню, г/м3 | AA7: Вміст меркаптанової сірки, г/м3 | AB7: Вміст механічних домішок, г/м3
N8: Густина абсолютна, кг/м3,при 20 ºС, | O8: Температура вимірювання/згоряння при 20/25°С
B9: метан, С1 | C9: етан, С2 | D9: пропан, С3 | E9: ізо-бутан, і-С4 | F9: н-бутан, н-С4 | G9: нео-пентан, нео-С5 | H9: ізо-пентан, і-С5 | I9: н-пентан, н-С5 | J9: гексани та вищі, С6+ | K9: кисень, О2 | L9: азот, N2 | M9: діоксид вуглецю, CО2 | O9: Теплота згоряння нижча | R9: Теплота згоряння вища | U9: Число Воббе вище
O10: ккал/м3 | P10: МДж/м3 | Q10: кВт⋅год/м3 | R10: ккал/м3 | S10: МДж/м3 | T10: кВт⋅год/м3 | U10: ккал/м3 | V10: МДж/м3 | W10: кВт⋅год/м3
A11: 1 | O11: 8256 | P11: 34.57 | Q11: =P11/3.6 -> 9.602777778 | R11: 9153 | S11: 38.32 | T11: =S11/3.6 -> 10.64444444 | AC11: =SUM(B11:M11)+$K$42+$N$42 -> 0
A12: 2 | O12: 8256 | P12: 34.57 | Q12: 9.602777778 | R12: 9153 | S12: 38.32 | T12: 10.64444444 | AC12: 0
A13: 3 | B13: 95.4174 | C13: 2.6245 | D13: 0.8274 | E13: 0.13 | F13: 0.1264 | G13: 0.0016 | H13: 0.0237 | I13: 0.0156 | J13: 0.0147 | K13: 0.0095 | L13: 0.6154 | M13: 0.1938 | N13: 0.7046 | O13: 8248 | P13: 34.53 | Q13: 9.591666667 | R13: 9144 | S13: 38.29 | T13: 10.63611111 | U13: 11956 | V13: 50.06 | W13: =V13/3.6 -> 13.90555556 | X13: -19.1 | AC13: 100 | AD13: =IF(AC13=100,"ОК"," ") -> ОК
A14: 4 | B14: 95.548 | C14: 2.5304 | D14: 0.7959 | E14: 0.1242 | F14: 0.1208 | G14: 0.0015 | H14: 0.0229 | I14: 0.0151 | J14: 0.0139 | K14: 0.0096 | L14: 0.6355 | M14: 0.1821 | N14: 0.7034 | O14: 8235 | P14: 34.48 | Q14: 9.577777778 | R14: 9130 | S14: 38.23 | T14: 10.61944444 | U14: 11948 | V14: 50.02 | W14: =V14/3.6 -> 13.89444444 | X14: -19.9 | Z14: 0 | AA14: 0 | AB14: 0 | AC14: 99.9999 | AD14: =IF(AC14=100,"ОК"," ") -> 
A15: 5 | B15: 95.5272 | C15: 2.5412 | D15: 0.8041 | E15: 0.1256 | F15: 0.1226 | G15: 0.0014 | H15: 0.023 | I15: 0.015 | J15: 0.0141 | K15: 0.0105 | L15: 0.6335 | M15: 0.1818 | N15: 0.7036 | O15: 8238 | P15: 34.49 | Q15: 9.580555556 | R15: 9133 | S15: 38.24 | T15: 10.62222222 | U15: 11949 | V15: 50.03 | W15: =V15/3.6 -> 13.89722222 | X15: -20.4 | AC15: 100 | AD15: ОК
A16: 6 | B16: 95.5505 | C16: 2.5183 | D16: 0.7964 | E16: 0.1241 | F16: 0.1214 | G16: 0.0015 | H16: 0.0226 | I16: 0.015 | J16: 0.014 | K16: 0.0119 | L16: 0.6432 | M16: 0.1811 | N16: 0.7034 | O16: 8234 | P16: 34.47 | Q16: 9.575 | R16: 9129 | S16: 38.22 | T16: 10.61666667 | U16: 11946 | V16: 50.01 | W16: =V16/3.6 -> 13.89166667 | X16: -20.7 | AC16: 100 | AD16: ОК
A17: 7 | B17: 95.4454 | C17: 2.5991 | D17: 0.825 | E17: 0.1289 | F17: 0.1258 | G17: 0.0015 | H17: 0.0233 | I17: 0.0156 | J17: 0.0142 | K17: 0.0083 | L17: 0.6212 | M17: 0.1915 | N17: 0.7044 | O17: 8246 | P17: 34.52 | Q17: 9.588888889 | R17: 9142 | S17: 38.27 | T17: 10.63055556 | U17: 11954 | V17: 50.05 | W17: =V17/3.6 -> 13.90277778 | X17: -20.4 | AC17: 99.9998
A18: 8 | O18: 8246 | P18: 34.52 | Q18: 9.588888889 | R18: 9142 | S18: 38.27 | T18: 10.63055556 | AC18: 0
A19: 9 | O19: 8246 | P19: 34.52 | Q19: 9.588888889 | R19: 9142 | S19: 38.27 | T19: 10.63055556 | AC19: 0
A20: 10 | B20: 95.3152 | C20: 2.6869 | D20: 0.8428 | E20: 0.1285 | F20: 0.1263 | G20: 0.0015 | H20: 0.0227 | I20: 0.0151 | J20: 0.0123 | K20: 0.0105 | L20: 0.6374 | M20: 0.2006 | N20: 0.7052 | O20: 8250 | P20: 34.54 | Q20: =P20/3.6 -> 9.594444444 | R20: 9146 | S20: 38.29 | T20: =S20/3.6 -> 10.63611111 | U20: 11953 | V20: 50.05 | W20: =V20/3.6 -> 13.90277778 | X20: -20.3 | AC20: 99.9998
A21: 11 | B21: 95.5683 | C21: 2.5231 | D21: 0.7953 | E21: 0.1227 | F21: 0.1204 | G21: 0.0014 | H21: 0.022 | I21: 0.0141 | J21: 0.0124 | K21: 0.0096 | L21: 0.6257 | M21: 0.1849 | N21: 0.7032 | O21: 8234 | P21: 34.47 | Q21: 9.575 | R21: 9129 | S21: 38.22 | T21: 10.61666667 | U21: 11947 | V21: 50.02 | W21: 13.89444444 | X21: -20 | AC21: 99.9999
A22: 12 | B22: 95.5312 | C22: 2.5414 | D22: 0.8055 | E22: 0.1245 | F22: 0.1219 | G22: 0.0015 | H22: 0.0224 | I22: 0.0146 | J22: 0.0134 | K22: 0.0101 | L22: 0.6267 | M22: 0.1869 | N22: 0.7036 | O22: 8237 | P22: 34.49 | Q22: 9.580555556 | R22: 9132 | S22: 38.24 | T22: 10.62222222 | U22: 11949 | V22: 50.03 | W22: 13.89722222 | X22: -20 | AC22: 100.0001
A23: 13 | B23: 95.5686 | C23: 2.516 | D23: 0.796 | E23: 0.1233 | F23: 0.1205 | G23: 0.0015 | H23: 0.0223 | I23: 0.0146 | J23: 0.0133 | K23: 0.0101 | L23: 0.6283 | M23: 0.1853 | N23: 0.7032 | O23: 8234 | P23: 34.47 | Q23: 9.575 | R23: 9129 | S23: 38.22 | T23: =S23/3.6 -> 10.61666667 | U23: 11947 | V23: 50.02 | W23: 13.89444444 | X23: -20.6 | AC23: 99.9998
A24: 14 | B24: 95.5173 | C24: 2.5635 | D24: 0.8119 | E24: 0.1248 | F24: 0.1224 | G24: 0.0015 | H24: 0.0223 | I24: 0.0146 | J24: 0.0126 | K24: 0.0075 | L24: 0.6114 | M24: 0.1902 | N24: 0.7037 | O24: 8240 | P24: 34.5 | Q24: 9.583333333 | R24: 9136 | S24: 38.25 | T24: =S24/3.6 -> 10.625 | U24: 11952 | V24: 50.04 | W24: 13.9 | X24: -21.3 | AC24: 100 | AD24: ОК
A25: 15 | O25: 8240 | P25: 34.5 | Q25: 9.583333333 | R25: 9136 | S25: 38.25 | T25: 10.625 | AC25: 0
A26: 16 | O26: 8240 | P26: 34.5 | Q26: =P26/3.6 -> 9.583333333 | R26: 9136 | S26: 38.25 | T26: =S26/3.6 -> 10.625 | AC26: 0
A27: 17 | O27: 8240 | P27: 34.5 | Q27: 9.583333333 | R27: 9136 | S27: 38.25 | T27: 10.625 | AC27: 0
A28: 18 | B28: 95.3286 | C28: 2.6582 | D28: 0.8388 | E28: 0.1274 | F28: 0.1253 | G28: 0.0014 | H28: 0.0229 | I28: 0.0153 | J28: 0.0143 | K28: 0.0129 | L28: 0.6442 | M28: 0.2107 | N28: 0.7052 | O28: 8247 | P28: 34.53 | Q28: 9.591666667 | R28: 9143 | S28: 38.28 | T28: 10.63333333 | U28: 11948 | V28: 50.03 | W28: =V28/3.6 -> 13.89722222 | X28: -21 | AC28: 100 | AD28: ОК
A29: 19 | B29: 95.4693 | C29: 2.5582 | D29: 0.8127 | E29: 0.1248 | F29: 0.1225 | G29: 0.0014 | H29: 0.0229 | I29: 0.0153 | J29: 0.0143 | K29: 0.0147 | L29: 0.6484 | M29: 0.1954 | N29: 0.7041 | O29: 8237 | P29: 34.49 | Q29: 9.580555556 | R29: 9132 | S29: 38.23 | T29: 10.61944444 | U29: 11944 | V29: 50.01 | W29: 13.89166667 | AC29: 99.9999
A30: 20 | B30: 95.4526 | C30: 2.5936 | D30: 0.8222 | E30: 0.1278 | F30: 0.1246 | G30: 0.0015 | H30: 0.0233 | I30: 0.0157 | J30: 0.0148 | K30: 0.0066 | L30: 0.6171 | M30: 0.2001 | N30: 0.7043 | O30: 8245 | P30: 34.52 | Q30: 9.588888889 | R30: 9140 | S30: 38.27 | T30: 10.63055556 | U30: 11953 | V30: 50.04 | W30: 13.9 | AC30: 99.9999 | AD30: =IF(AC30=100,"ОК"," ") -> 
A31: 21 | B31: 95.1006 | C31: 2.827 | D31: 0.8929 | E31: 0.1365 | F31: 0.1338 | G31: 0.0014 | H31: 0.0244 | I31: 0.0163 | J31: 0.0139 | K31: 0.0082 | L31: 0.6095 | M31: 0.2355 | N31: 0.7073 | O31: 8269 | P31: 34.62 | Q31: 9.616666667 | R31: 9166 | S31: 38.38 | T31: 10.66111111 | U31: 11962 | V31: 50.08 | W31: 13.91111111 | X31: -21.8 | AC31: 100 | AD31: ОК
A32: 22 | O32: 8269 | P32: 34.62 | Q32: 9.616666667 | R32: 9166 | S32: 38.38 | T32: 10.66111111 | AC32: 0
A33: 23 | O33: 8269 | P33: 34.62 | Q33: =P33/3.6 -> 9.616666667 | R33: 9166 | S33: 38.38 | T33: =S33/3.6 -> 10.66111111 | AC33: 0 | AD33: =IF(AC33=100,"ОК"," ") -> 
A34: 24 | B34: 95.3714 | C34: 2.647 | D34: 0.8377 | E34: 0.1325 | F34: 0.129 | G34: 0.0015 | H34: 0.0241 | I34: 0.0162 | J34: 0.0155 | K34: 0.0062 | L34: 0.61 | M34: 0.2087 | N34: 0.7051 | O34: 8252 | P34: 34.55 | Q34: 9.597222222 | R34: 9148 | S34: 38.3 | T34: 10.63888889 | U34: 11962 | V34: 50.06 | W34: 13.90555556 | X34: -21 | AC34: 99.9998
A35: 25 | B35: 95.4196 | C35: 2.6084 | D35: 0.8219 | E35: 0.1288 | F35: 0.126 | G35: 0.0015 | H35: 0.0238 | I35: 0.0158 | J35: 0.0152 | K35: 0.0075 | L35: 0.625 | M35: 0.2067 | N35: 0.7046 | O35: 8245 | P35: 34.52 | Q35: 9.588888889 | R35: 9141 | S35: 38.27 | T35: 10.63055556 | U35: 11951 | V35: 50.04 | W35: =V35/3.6 -> 13.9 | X35: -17.1 | AC35: 100.0002
A36: 26 | B36: 95.408 | C36: 2.6195 | D36: 0.8257 | E36: 0.1286 | F36: 0.1261 | G36: 0.0015 | H36: 0.0232 | I36: 0.0154 | J36: 0.0143 | K36: 0.008 | L36: 0.6239 | M36: 0.2058 | N36: 0.7047 | O36: 8246 | P36: 34.52 | Q36: 9.588888889 | R36: 9141 | S36: 38.27 | T36: =S36/3.6 -> 10.63055556 | U36: 11951 | V36: 50.04 | W36: 13.9 | X36: -20.6 | AC36: 100 | AD36: ОК
A37: 27 | O37: 8246 | P37: 34.52 | Q37: 9.588888889 | R37: 9141 | S37: 38.27 | T37: 10.63055556 | AC37: 0
A38: 28 | O38: 8246 | P38: 34.52 | Q38: 9.588888889 | R38: 9141 | S38: 38.27 | T38: 10.63055556 | AC38: 0
A39: 29 | O39: 8246 | P39: 34.52 | Q39: 9.588888889 | R39: 9141 | S39: 38.27 | T39: =S11/3.6 -> 10.64444444 | AC39: 0
A40: 30 | O40: 8246 | P40: 34.52 | Q40: 9.588888889 | R40: 9141 | S40: 38.27 | T40: =S40/3.6 -> 10.63055556 | AC40: 0
A41: 31 | AC41: 0
B42: Рівень одоризації відповідає чинним нормативним документам | O42: 8246 | P42: 34.52 | Q42: 9.59 | R42: 9142 | S42: 38.27 | T42: 10.63
H43: Середньозважене значення теплоти згоряння:
B46: Начальник управління Барського ЛВУМГ Мандра В.В.
C47: Підрозділу підприємства, якому підпорядкована лабораторія | O47: прізвище | R47: підпис
B48: Начальник лабораторії Ільницька Г.О.
C49: Лабораторія, де здійснювалось вимірювання газу | O49: прізвище | R49: підпис

Sheet variablesList (hidden)
A1: 3 | B1: x:\gaysin | C1: 10, 11, 24, 25, 127, 128, 132, 180, 207, 215 | D1: x:\
B2: x:\Illinci
B3: x:\Talne

Sheet додаток
A2: Додаток до паспорту фізико-хімічних показників природного газу по маршруту № 806
B4: Обсяг газу переданого за добу, м3 | H4: Середньозважене значення теплоти згоряння вищої по маршруту № 806
B5: Вінницька область
B6: ППВВГ "Митки" | C6: ГРС Мартинівка | D6: ГРС Мурафа | E6: ГРС Літин | F6: ГРС Пасинки | G6: ГРС Сьомаки
A7: Теплота згоряння вища (середньозважене значення за місяць), МДж/м³ | B7: ='[1]розрахунок №806'!C40 -> 38.27 | C7: ='[1]розрахунок №806'!D40 -> 38.27 | D7: ='[1]розрахунок №806'!E40 -> 38.27 | E7: ='[1]розрахунок №806'!F40 -> 38.27 | F7: ='[1]розрахунок №806'!G40 -> 38.27 | G7: ='[1]розрахунок №806'!H40 -> 38.27 | H7: ='[1]розрахунок №806'!I40 -> 38.27
A8: Теплота згоряння вища (середньозважене значення за місяць), ккал/м³ | B8: ='[1]розрахунок №806'!C41 -> 9142 | C8: ='[1]розрахунок №806'!D41 -> 9142 | D8: ='[1]розрахунок №806'!E41 -> 9142 | E8: ='[1]розрахунок №806'!F41 -> 9142 | F8: ='[1]розрахунок №806'!G41 -> 9142 | G8: ='[1]розрахунок №806'!H41 -> 9142 | H8: ='[1]розрахунок №806'!I41 -> 9142
A9: Теплота згоряння вища (середньозважене значення за місяць), кВт*год./м³ | B9: ='[1]розрахунок №806'!C42 -> 10.63 | C9: ='[1]розрахунок №806'!D42 -> 10.63 | D9: ='[1]розрахунок №806'!E42 -> 10.63 | E9: ='[1]розрахунок №806'!F42 -> 10.63 | F9: ='[1]розрахунок №806'!G42 -> 10.63 | G9: ='[1]розрахунок №806'!H42 -> 10.63 | H9: ='[1]розрахунок №806'!I42 -> 10.63
A14: Начальник управління Барського ЛВУМГ Мандра В,В.
A15: Підрозділу підприємства, якому підпорядкована лабораторія | D15: прізвище
A16: Начальник лабораторії Ільницька Г.І.
A17: Лабораторія, де здійснювалось вимірювання газу | D17: прізвище
